[Event "Late-Titled-Tuesday-Blitz-October-03-2023"]
[Site "Chess.com"]
[Date "2023.10.03"]
[Round "4"]
[White "ARTHURMOTIVATOR"]
[Black "Lion_DL"]
[Result "1-0"]
[WhiteElo "2345"]
[BlackElo "2485"]
[TimeControl "180+1"]
[EndTime "14:36:50 PDT"]
[Termination "ARTHURMOTIVATOR won by resignation"]

1. e4 {[%clk 0:03:00.9]} 1... c5 {[%clk 0:03:00.2]} 2. b3 {[%clk 0:02:58.2]}
2... e6 {[%clk 0:02:57.2]} 3. Bb2 {[%clk 0:02:56.8]} 3... b6 {[%clk 0:02:57.7]}
4. Nf3 {[%clk 0:02:53.3]} 4... Bb7 {[%clk 0:02:58.2]} 5. Nc3 {[%clk 0:02:52.9]}
5... d5 {[%clk 0:02:56.6]} 6. exd5 {[%clk 0:02:52.8]} 6... exd5 {[%clk
0:02:57.5]} 7. d4 {[%clk 0:02:52.8]} 7... Nf6 {[%clk 0:02:56.1]} 8. Bb5+ {[%clk
0:02:48.8]} 8... Nbd7 {[%clk 0:02:55.3]} 9. O-O {[%clk 0:02:44.4]} 9... Be7
{[%clk 0:02:55.5]} 10. Ne5 {[%clk 0:02:31.7]} 10... O-O {[%clk 0:02:53.3]} 11.
Nc6 {[%clk 0:02:22.8]} 11... Bxc6 {[%clk 0:02:49.8]} 12. Bxc6 {[%clk 0:02:23.7]}
12... Rc8 {[%clk 0:02:50.2]} 13. Bb7 {[%clk 0:02:19.7]} 13... Rc7 {[%clk
0:02:49.2]} 14. Ba6 {[%clk 0:02:18.9]} 14... cxd4 {[%clk 0:02:27.9]} 15. Nb5
{[%clk 0:02:17.3]} 15... Rc6 {[%clk 0:02:23.9]} 16. Nxd4 {[%clk 0:02:13.2]}
16... Rc7 {[%clk 0:02:22.2]} 17. Nf5 {[%clk 0:02:06.4]} 17... Bc5 {[%clk
0:02:13.9]} 18. Bd3 {[%clk 0:02:00.3]} 18... Re8 {[%clk 0:02:04.1]} 19. Qf3
{[%clk 0:01:49.9]} 19... Ne5 {[%clk 0:02:01.4]} 20. Bxe5 {[%clk 0:01:45.2]}
20... Rxe5 {[%clk 0:02:02.3]} 21. Qg3 {[%clk 0:01:45.3]} 21... Rxf5 {[%clk
0:01:56.7]} 22. Bxf5 {[%clk 0:01:46.2]} 22... Bd6 {[%clk 0:01:51.4]} 23. Qf3
{[%clk 0:01:43.6]} 23... g6 {[%clk 0:01:48.7]} 24. Bd3 {[%clk 0:01:43.3]} 24...
Rc3 {[%clk 0:01:31.9]} 25. Rad1 {[%clk 0:01:36.5]} 25... Ne4 {[%clk 0:01:26.6]}
26. Qe2 {[%clk 0:01:32.9]} 26... f5 {[%clk 0:01:23.1]} 27. g3 {[%clk 0:01:28.2]}
27... Bc5 {[%clk 0:01:16.4]} 28. Kh1 {[%clk 0:01:25.5]} 28... Qg5 {[%clk
0:01:07.2]} 29. f3 {[%clk 0:01:20.3]} 29... Nf6 {[%clk 0:01:02.3]} 30. Rde1
{[%clk 0:01:17.7]} 30... Qh5 {[%clk 0:00:49.1]} 31. Qe5 {[%clk 0:01:10.4]} 1-0

[Event "Late-Titled-Tuesday-Blitz-October-03-2023"]
[Site "Chess.com"]
[Date "2023.10.03"]
[Round "4"]
[White "FabianoCaruana"]
[Black "Alexandr_Predke"]
[Result "1-0"]
[WhiteElo "3069"]
[BlackElo "2882"]
[TimeControl "180+1"]
[EndTime "14:36:58 PDT"]
[Termination "FabianoCaruana won by resignation"]

1. c4 {[%clk 0:03:00.9]} 1... Nf6 {[%clk 0:02:57.4]} 2. Nc3 {[%clk 0:03:00.7]}
2... c5 {[%clk 0:02:57.4]} 3. Nf3 {[%clk 0:02:59.1]} 3... e6 {[%clk 0:02:54.7]}
4. g3 {[%clk 0:02:57.7]} 4... b6 {[%clk 0:02:51.5]} 5. Bg2 {[%clk 0:02:57.3]}
5... Bb7 {[%clk 0:02:52.2]} 6. O-O {[%clk 0:02:56.6]} 6... Be7 {[%clk
0:02:51.4]} 7. d4 {[%clk 0:02:56.7]} 7... cxd4 {[%clk 0:02:49.1]} 8. Qxd4 {[%clk
0:02:57.6]} 8... O-O {[%clk 0:02:46]} 9. Rd1 {[%clk 0:02:57.1]} 9... Nc6 {[%clk
0:02:44.9]} 10. Qf4 {[%clk 0:02:54]} 10... Qb8 {[%clk 0:02:36.6]} 11. b3 {[%clk
0:02:44.9]} 11... Rd8 {[%clk 0:02:28.9]} 12. Bb2 {[%clk 0:02:30.1]} 12... Qxf4
{[%clk 0:02:27.7]} 13. gxf4 {[%clk 0:02:31]} 13... d6 {[%clk 0:02:24.2]} 14. e3
{[%clk 0:02:28]} 14... g6 {[%clk 0:02:20.2]} 15. Nb5 {[%clk 0:02:26.3]} 15...
Ne8 {[%clk 0:02:18.1]} 16. Nfd4 {[%clk 0:02:25.1]} 16... Rdc8 {[%clk 0:02:07.9]}
17. Ba3 {[%clk 0:02:25.2]} 17... Nd8 {[%clk 0:01:42]} 18. Nf3 {[%clk 0:02:20.9]}
18... Bf6 {[%clk 0:00:52.2]} 19. Rac1 {[%clk 0:02:09.7]} 19... d5 {[%clk
0:00:52.7]} 20. Ne5 {[%clk 0:01:55.4]} 20... a6 {[%clk 0:00:47.9]} 21. Nc3
{[%clk 0:01:45.5]} 21... Bxe5 {[%clk 0:00:44.1]} 22. fxe5 {[%clk 0:01:46.4]}
22... Nc6 {[%clk 0:00:25.4]} 23. Na4 {[%clk 0:01:38.1]} 23... Rd8 {[%clk
0:00:23.6]} 24. Nxb6 {[%clk 0:01:36.7]} 24... Rab8 {[%clk 0:00:24.2]} 25. f4
{[%clk 0:01:26.3]} 25... d4 {[%clk 0:00:16.3]} 26. Bc5 {[%clk 0:01:26.4]} 26...
d3 {[%clk 0:00:14.6]} 27. Rc3 {[%clk 0:01:23.7]} 27... d2 {[%clk 0:00:08.2]} 28.
Rc2 {[%clk 0:01:23.8]} 28... Na5 {[%clk 0:00:08.3]} 29. Rcxd2 {[%clk 0:01:19.4]}
1-0

[Event "Late-Titled-Tuesday-Blitz-October-03-2023"]
[Site "Chess.com"]
[Date "2023.10.03"]
[Round "4"]
[White "Horokoskii"]
[Black "Saraisitave"]
[Result "1-0"]
[WhiteElo "2103"]
[BlackElo "2268"]
[TimeControl "180+1"]
[EndTime "14:36:58 PDT"]
[Termination "Horokoskii won by resignation"]

1. d4 {[%clk 0:02:10.8]} 1... d5 {[%clk 0:02:56.4]} 2. c4 {[%clk 0:02:09.7]}
2... c6 {[%clk 0:02:52.3]} 3. Nc3 {[%clk 0:02:09.1]} 3... Nf6 {[%clk 0:02:50.7]}
4. e3 {[%clk 0:02:07.4]} 4... Bf5 {[%clk 0:02:19.8]} 5. cxd5 {[%clk 0:01:54.5]}
5... cxd5 {[%clk 0:02:18.4]} 6. Qb3 {[%clk 0:01:52.3]} 6... Nc6 {[%clk
0:01:18.7]} 7. Qxb7 {[%clk 0:01:46.4]} 7... Bd7 {[%clk 0:01:18.5]} 8. Qb3 {[%clk
0:01:44.1]} 8... Rb8 {[%clk 0:01:17.9]} 9. Qd1 {[%clk 0:01:44.1]} 9... e5 {[%clk
0:00:53.8]} 10. dxe5 {[%clk 0:01:38.7]} 10... Nxe5 {[%clk 0:00:48.6]} 11. Be2
{[%clk 0:01:38.8]} 11... Bd6 {[%clk 0:00:32.6]} 12. Nf3 {[%clk 0:01:38]} 12...
Nxf3+ {[%clk 0:00:16.3]} 13. Bxf3 {[%clk 0:01:38.9]} 13... Qc7 {[%clk
0:00:16.7]} 14. Nxd5 {[%clk 0:01:32.3]} 14... Nxd5 {[%clk 0:00:16.7]} 15. Qxd5
{[%clk 0:01:30.3]} 15... O-O {[%clk 0:00:13.9]} 16. h3 {[%clk 0:01:29.2]} 16...
Be6 {[%clk 0:00:12]} 17. Qc6 {[%clk 0:01:22.9]} 17... Bb4+ {[%clk 0:00:09.7]}
18. Kf1 {[%clk 0:01:18.7]} 18... Qe5 {[%clk 0:00:09.9]} 19. Qe4 {[%clk
0:01:11.7]} 19... Bc4+ {[%clk 0:00:08.8]} 20. Kg1 {[%clk 0:01:09.8]} 20... Qxe4
{[%clk 0:00:08.3]} 21. Bxe4 {[%clk 0:01:08.9]} 21... Be6 {[%clk 0:00:08.3]} 22.
a3 {[%clk 0:01:08.1]} 22... Rfe8 {[%clk 0:00:08.4]} 23. axb4 {[%clk 0:01:07]}
1-0

[Event "Late-Titled-Tuesday-Blitz-October-03-2023"]
[Site "Chess.com"]
[Date "2023.10.03"]
[Round "4"]
[White "fyall777"]
[Black "mfwagnerpeixoto"]
[Result "1-0"]
[WhiteElo "2506"]
[BlackElo "2332"]
[TimeControl "180+1"]
[EndTime "14:37:01 PDT"]
[Termination "fyall777 won by resignation"]

1. b3 {[%clk 0:02:00.8]} 1... c6 {[%clk 0:02:58.6]} 2. Bb2 {[%clk 0:02:01]} 2...
d5 {[%clk 0:02:58.7]} 3. e3 {[%clk 0:02:01.5]} 3... Nf6 {[%clk 0:02:57.4]} 4. f4
{[%clk 0:02:00.7]} 4... g6 {[%clk 0:02:47]} 5. Nf3 {[%clk 0:02:00.2]} 5... Bg7
{[%clk 0:02:47]} 6. Be2 {[%clk 0:02:00.7]} 6... O-O {[%clk 0:02:46.5]} 7. O-O
{[%clk 0:02:01.3]} 7... Bg4 {[%clk 0:02:43]} 8. Ne5 {[%clk 0:02:00.8]} 8... Bxe2
{[%clk 0:02:43.2]} 9. Qxe2 {[%clk 0:02:01.7]} 9... Nfd7 {[%clk 0:02:43.4]} 10.
d4 {[%clk 0:01:40.6]} 10... Nxe5 {[%clk 0:02:43.2]} 11. dxe5 {[%clk 0:01:37.6]}
11... e6 {[%clk 0:02:43.4]} 12. Nd2 {[%clk 0:01:36.9]} 12... Nd7 {[%clk
0:02:42.4]} 13. Rad1 {[%clk 0:01:33.3]} 13... f6 {[%clk 0:02:38.7]} 14. exf6
{[%clk 0:01:33]} 14... Bxf6 {[%clk 0:02:39.1]} 15. Bxf6 {[%clk 0:01:32.2]} 15...
Qxf6 {[%clk 0:02:40]} 16. e4 {[%clk 0:01:30.7]} 16... Nb6 {[%clk 0:02:34.9]} 17.
c4 {[%clk 0:01:23.9]} 17... Rad8 {[%clk 0:01:58.8]} 18. cxd5 {[%clk 0:01:23.1]}
18... exd5 {[%clk 0:01:57.8]} 19. e5 {[%clk 0:01:23]} 19... Qe7 {[%clk
0:01:51.5]} 20. Qg4 {[%clk 0:01:17.5]} 20... Kh8 {[%clk 0:01:36.3]} 21. Nf3
{[%clk 0:01:16.7]} 21... a5 {[%clk 0:01:15.6]} 22. Ng5 {[%clk 0:01:16.5]} 22...
Rde8 {[%clk 0:01:09]} 23. Rde1 {[%clk 0:01:12.3]} 23... d4 {[%clk 0:01:05.6]}
24. f5 {[%clk 0:01:11.3]} 24... gxf5 {[%clk 0:01:02.9]} 25. Rxf5 {[%clk
0:01:11.2]} 25... Rxf5 {[%clk 0:01:02.9]} 26. Qxf5 {[%clk 0:01:11.5]} 26... Rf8
{[%clk 0:01:01.1]} 27. Qg4 {[%clk 0:01:06.2]} 27... Rg8 {[%clk 0:00:56.1]} 28.
h4 {[%clk 0:01:04.8]} 28... Nd5 {[%clk 0:00:49.9]} 29. e6 {[%clk 0:00:59.3]} 1-0

[Event "Late-Titled-Tuesday-Blitz-October-03-2023"]
[Site "Chess.com"]
[Date "2023.10.03"]
[Round "4"]
[White "Dhaydon19"]
[Black "maxip32"]
[Result "1-0"]
[WhiteElo "2745"]
[BlackElo "2543"]
[TimeControl "180+1"]
[EndTime "14:37:04 PDT"]
[Termination "Dhaydon19 won by resignation"]

1. e4 {[%clk 0:03:00.9]} 1... e5 {[%clk 0:02:59.8]} 2. Nf3 {[%clk 0:02:59.9]}
2... Nf6 {[%clk 0:03:00.2]} 3. Nxe5 {[%clk 0:02:58.9]} 3... d6 {[%clk
0:03:00.7]} 4. Nf3 {[%clk 0:02:58.5]} 4... Nxe4 {[%clk 0:03:01]} 5. Nc3 {[%clk
0:02:54]} 5... Nf6 {[%clk 0:02:59.8]} 6. d4 {[%clk 0:02:41]} 6... Be7 {[%clk
0:03:00]} 7. Bd3 {[%clk 0:02:40.9]} 7... O-O {[%clk 0:03:00.9]} 8. O-O {[%clk
0:02:39.5]} 8... Re8 {[%clk 0:02:56.6]} 9. h3 {[%clk 0:02:33.6]} 9... Nbd7
{[%clk 0:02:54.8]} 10. Bf4 {[%clk 0:02:32.9]} 10... Nf8 {[%clk 0:02:54.6]} 11.
Re1 {[%clk 0:02:21.6]} 11... Ng6 {[%clk 0:02:54.7]} 12. Bh2 {[%clk 0:02:21.2]}
12... Nh5 {[%clk 0:02:52]} 13. Ne2 {[%clk 0:02:19.6]} 13... Be6 {[%clk
0:02:36.5]} 14. c4 {[%clk 0:02:11.9]} 14... Qd7 {[%clk 0:02:28]} 15. Ng3 {[%clk
0:01:56.7]} 15... Nhf4 {[%clk 0:02:22.1]} 16. Bf1 {[%clk 0:01:53.1]} 16... d5
{[%clk 0:02:13.1]} 17. c5 {[%clk 0:01:47.1]} 17... c6 {[%clk 0:02:09.4]} 18. b4
{[%clk 0:01:44.3]} 18... a5 {[%clk 0:02:08.7]} 19. a3 {[%clk 0:01:31.1]} 19...
Qd8 {[%clk 0:01:38.7]} 20. b5 {[%clk 0:01:27.2]} 20... Qd7 {[%clk 0:01:36]} 21.
a4 {[%clk 0:01:24.4]} 21... Bf6 {[%clk 0:01:32]} 22. Qd2 {[%clk 0:01:19.6]}
22... h6 {[%clk 0:01:16.7]} 23. Re3 {[%clk 0:01:16.9]} 23... Bxh3 {[%clk
0:01:11.1]} 24. gxh3 {[%clk 0:01:07.1]} 24... Nxh3+ {[%clk 0:01:12]} 25. Kh1
{[%clk 0:01:01.7]} 25... Qg4 {[%clk 0:01:11]} 26. Bxh3 {[%clk 0:00:39.1]} 26...
Qxh3 {[%clk 0:01:10.2]} 27. Rg1 {[%clk 0:00:39.7]} 27... Nf4 {[%clk 0:00:48.3]}
28. Rxe8+ {[%clk 0:00:37.9]} 28... Rxe8 {[%clk 0:00:44.6]} 29. Qxf4 {[%clk
0:00:38]} 1-0

[Event "Late-Titled-Tuesday-Blitz-October-03-2023"]
[Site "Chess.com"]
[Date "2023.10.03"]
[Round "4"]
[White "Balla_Tamas"]
[Black "ETTrainer"]
[Result "0-1"]
[WhiteElo "2432"]
[BlackElo "2279"]
[TimeControl "180+1"]
[EndTime "14:37:12 PDT"]
[Termination "ETTrainer won by resignation"]

1. e4 {[%clk 0:02:56.5]} 1... c5 {[%clk 0:02:59]} 2. c3 {[%clk 0:02:55.8]} 2...
e6 {[%clk 0:02:58.2]} 3. d4 {[%clk 0:02:55.9]} 3... d5 {[%clk 0:02:58.8]} 4.
exd5 {[%clk 0:02:56.2]} 4... Qxd5 {[%clk 0:02:59.7]} 5. Nf3 {[%clk 0:02:56]}
5... Nf6 {[%clk 0:02:57.2]} 6. Be3 {[%clk 0:02:54.8]} 6... cxd4 {[%clk
0:02:56.7]} 7. cxd4 {[%clk 0:02:53.4]} 7... Nc6 {[%clk 0:02:54.8]} 8. Nc3 {[%clk
0:02:53.2]} 8... Qd8 {[%clk 0:02:52.2]} 9. Bd3 {[%clk 0:02:53.6]} 9... Be7
{[%clk 0:02:51.8]} 10. O-O {[%clk 0:02:54]} 10... O-O {[%clk 0:02:51]} 11. a3
{[%clk 0:02:52.4]} 11... a6 {[%clk 0:02:40.8]} 12. Qe2 {[%clk 0:02:49.3]} 12...
Re8 {[%clk 0:02:23.5]} 13. Rad1 {[%clk 0:02:47.2]} 13... b5 {[%clk 0:02:14.2]}
14. Bb1 {[%clk 0:02:46.4]} 14... Bb7 {[%clk 0:02:12]} 15. Ne5 {[%clk 0:02:45.6]}
15... Nxe5 {[%clk 0:02:00.3]} 16. dxe5 {[%clk 0:02:46.5]} 16... Nd5 {[%clk
0:02:00.2]} 17. Nxd5 {[%clk 0:02:42]} 17... Bxd5 {[%clk 0:02:00.3]} 18. Rd4
{[%clk 0:02:30]} 18... Qc7 {[%clk 0:01:57.3]} 19. Qh5 {[%clk 0:02:02.6]} 19...
g6 {[%clk 0:01:54.4]} 20. Qh6 {[%clk 0:02:01.6]} 20... Qxe5 {[%clk 0:01:52.5]}
21. Rfd1 {[%clk 0:01:40]} 21... Red8 {[%clk 0:01:14.9]} 22. Rg4 {[%clk
0:01:09.7]} 22... Be4 {[%clk 0:00:56.2]} 23. Re1 {[%clk 0:01:02.7]} 23... Bxb1
{[%clk 0:00:55]} 24. Rxb1 {[%clk 0:00:58.6]} 24... Qf5 {[%clk 0:00:54.2]} 25.
Re1 {[%clk 0:00:25.9]} 25... Qxg4 {[%clk 0:00:52.6]} 26. h3 {[%clk 0:00:25.9]}
26... Qh4 {[%clk 0:00:49.5]} 0-1

[Event "Late-Titled-Tuesday-Blitz-October-03-2023"]
[Site "Chess.com"]
[Date "2023.10.03"]
[Round "4"]
[White "AjedrezenMadrid"]
[Black "biostatistician"]
[Result "0-1"]
[WhiteElo "2467"]
[BlackElo "2627"]
[TimeControl "180+1"]
[EndTime "14:37:18 PDT"]
[Termination "biostatistician won on time"]

1. b3 {[%clk 0:03:00.6]} 1... d5 {[%clk 0:02:58]} 2. Bb2 {[%clk 0:02:59.8]} 2...
Bg4 {[%clk 0:02:39.4]} 3. Nf3 {[%clk 0:02:57.4]} 3... Nc6 {[%clk 0:02:38.6]} 4.
e3 {[%clk 0:02:56.9]} 4... f6 {[%clk 0:02:38.1]} 5. d4 {[%clk 0:02:52.2]} 5...
e6 {[%clk 0:02:34.6]} 6. Nbd2 {[%clk 0:02:48.3]} 6... Bd6 {[%clk 0:02:33.6]} 7.
c4 {[%clk 0:02:47.4]} 7... Nh6 {[%clk 0:02:30.6]} 8. h3 {[%clk 0:02:47.7]} 8...
Bh5 {[%clk 0:02:26.9]} 9. Bd3 {[%clk 0:02:45.5]} 9... O-O {[%clk 0:02:25.4]} 10.
a3 {[%clk 0:02:33.8]} 10... Qe8 {[%clk 0:02:05]} 11. b4 {[%clk 0:02:19.2]} 11...
Bg6 {[%clk 0:01:59.5]} 12. Be2 {[%clk 0:02:11.2]} 12... Nf5 {[%clk 0:01:56.8]}
13. b5 {[%clk 0:01:57.4]} 13... Na5 {[%clk 0:01:56.6]} 14. c5 {[%clk 0:01:54.3]}
14... Be7 {[%clk 0:01:56.4]} 15. Bc3 {[%clk 0:01:25.3]} 15... b6 {[%clk
0:01:54.7]} 16. Bxa5 {[%clk 0:01:12]} 16... bxa5 {[%clk 0:01:55.6]} 17. Qa4
{[%clk 0:01:12.4]} 17... e5 {[%clk 0:01:51.9]} 18. g4 {[%clk 0:01:03.2]} 18...
Nh6 {[%clk 0:01:39.9]} 19. Qxa5 {[%clk 0:01:02.9]} 19... exd4 {[%clk 0:01:37.5]}
20. exd4 {[%clk 0:00:54.7]} 20... c6 {[%clk 0:01:34.5]} 21. O-O {[%clk
0:00:44.1]} 21... Bd8 {[%clk 0:01:31.2]} 22. b6 {[%clk 0:00:14.3]} 22... Qxe2
{[%clk 0:01:30.3]} 23. Rae1 {[%clk 0:00:10.1]} 23... Qb5 {[%clk 0:01:14.4]} 24.
Qxb5 {[%clk 0:00:05]} 24... cxb5 {[%clk 0:01:15.3]} 25. b7 {[%clk 0:00:05.3]}
25... Rb8 {[%clk 0:01:15.5]} 26. c6 {[%clk 0:00:06.2]} 26... Bd3 {[%clk
0:01:12.7]} 0-1

[Event "Late-Titled-Tuesday-Blitz-October-03-2023"]
[Site "Chess.com"]
[Date "2023.10.03"]
[Round "4"]
[White "elcala"]
[Black "luca_va99"]
[Result "0-1"]
[WhiteElo "1728"]
[BlackElo "2286"]
[TimeControl "180+1"]
[EndTime "14:37:19 PDT"]
[Termination "luca_va99 won by resignation"]

1. d4 {[%clk 0:03:00.5]} 1... Nf6 {[%clk 0:02:58.6]} 2. c4 {[%clk 0:03:00.6]}
2... c5 {[%clk 0:02:59.2]} 3. e3 {[%clk 0:02:58.3]} 3... cxd4 {[%clk 0:02:59.1]}
4. exd4 {[%clk 0:02:57]} 4... d5 {[%clk 0:03:00]} 5. c5 {[%clk 0:02:52.1]} 5...
g6 {[%clk 0:02:59.4]} 6. Nc3 {[%clk 0:02:51.5]} 6... Bg7 {[%clk 0:02:59.7]} 7.
Bb5+ {[%clk 0:02:50.5]} 7... Nc6 {[%clk 0:02:58.3]} 8. Nf3 {[%clk 0:02:49.9]}
8... O-O {[%clk 0:02:58.1]} 9. O-O {[%clk 0:02:50]} 9... Ne4 {[%clk 0:02:55.1]}
10. Re1 {[%clk 0:02:16.1]} 10... f5 {[%clk 0:02:48.7]} 11. Bxc6 {[%clk 0:02:11]}
11... bxc6 {[%clk 0:02:46.2]} 12. Bf4 {[%clk 0:02:05.4]} 12... e6 {[%clk
0:02:30.4]} 13. h3 {[%clk 0:02:02.8]} 13... h6 {[%clk 0:02:14.7]} 14. Be5 {[%clk
0:01:40.6]} 14... Bd7 {[%clk 0:02:09.7]} 15. Bxg7 {[%clk 0:01:33.2]} 15... Kxg7
{[%clk 0:02:09.9]} 16. Ne5 {[%clk 0:01:33.7]} 16... Qc7 {[%clk 0:02:03.2]} 17.
Qf3 {[%clk 0:01:18.7]} 17... Rab8 {[%clk 0:02:01.8]} 18. Nxe4 {[%clk 0:01:14.4]}
18... dxe4 {[%clk 0:02:01.3]} 19. Qg3 {[%clk 0:01:11.9]} 19... g5 {[%clk
0:01:51.8]} 20. b3 {[%clk 0:01:04.1]} 20... Be8 {[%clk 0:01:42.3]} 21. f3 {[%clk
0:00:55.2]} 21... f4 {[%clk 0:01:36.6]} 22. Qg4 {[%clk 0:00:44.9]} 22... e3
{[%clk 0:01:34]} 23. Qxe6 {[%clk 0:00:37.3]} 23... Rf6 {[%clk 0:01:18.4]} 24.
Qc4 {[%clk 0:00:28]} 24... Bf7 {[%clk 0:01:13.8]} 25. Qd3 {[%clk 0:00:26.1]}
25... Bg8 {[%clk 0:01:11.6]} 26. Re2 {[%clk 0:00:19.9]} 26... Rd8 {[%clk
0:01:09.2]} 27. Qe4 {[%clk 0:00:15.2]} 27... Bh7 {[%clk 0:01:06.4]} 28. Ng6
{[%clk 0:00:06.1]} 28... Bxg6 {[%clk 0:01:01.3]} 0-1

[Event "Late-Titled-Tuesday-Blitz-October-03-2023"]
[Site "Chess.com"]
[Date "2023.10.03"]
[Round "4"]
[White "dropstoneDP"]
[Black "rookoco"]
[Result "1-0"]
[WhiteElo "3078"]
[BlackElo "2751"]
[TimeControl "180+1"]
[EndTime "14:37:20 PDT"]
[Termination "dropstoneDP won on time"]

1. e4 {[%clk 0:03:00.9]} 1... c5 {[%clk 0:02:59.3]} 2. Nf3 {[%clk 0:03:01.1]}
2... d6 {[%clk 0:02:59.1]} 3. d4 {[%clk 0:03:01.2]} 3... cxd4 {[%clk 0:03:00]}
4. Nxd4 {[%clk 0:03:01.9]} 4... Nf6 {[%clk 0:03:00]} 5. Nc3 {[%clk 0:03:02.1]}
5... g6 {[%clk 0:03:00.6]} 6. Be3 {[%clk 0:03:01.9]} 6... Bg7 {[%clk 0:03:01.3]}
7. f3 {[%clk 0:03:02.4]} 7... Nc6 {[%clk 0:03:01.8]} 8. Qd2 {[%clk 0:03:02.7]}
8... O-O {[%clk 0:03:02.5]} 9. O-O-O {[%clk 0:03:03.2]} 9... d5 {[%clk 0:03:03]}
10. Nxc6 {[%clk 0:03:02.8]} 10... bxc6 {[%clk 0:03:03]} 11. Bh6 {[%clk
0:03:03.7]} 11... Rb8 {[%clk 0:03:00.4]} 12. Bxg7 {[%clk 0:02:55.1]} 12... Kxg7
{[%clk 0:03:01.3]} 13. h4 {[%clk 0:02:49.7]} 13... Qb6 {[%clk 0:02:47.4]} 14. b3
{[%clk 0:02:48.6]} 14... dxe4 {[%clk 0:02:43.4]} 15. h5 {[%clk 0:02:35.9]} 15...
e3 {[%clk 0:02:38.1]} 16. h6+ {[%clk 0:02:36]} 16... Kg8 {[%clk 0:02:36.5]} 17.
Qd4 {[%clk 0:02:35.7]} 17... Be6 {[%clk 0:02:22.6]} 18. Qxb6 {[%clk 0:02:33.9]}
18... axb6 {[%clk 0:02:21.2]} 19. Re1 {[%clk 0:02:34.1]} 19... b5 {[%clk
0:01:18.7]} 20. Rxe3 {[%clk 0:02:33.8]} 20... b4 {[%clk 0:01:18.5]} 21. Na4
{[%clk 0:02:33.6]} 21... Nd5 {[%clk 0:01:17.1]} 22. Re5 {[%clk 0:02:33.3]} 22...
Rfd8 {[%clk 0:01:05.6]} 23. Nc5 {[%clk 0:02:26.8]} 23... Bf5 {[%clk 0:01:03.1]}
24. g4 {[%clk 0:02:17]} 24... Bc8 {[%clk 0:00:46.7]} 25. Bc4 {[%clk 0:02:16.8]}
25... Kf8 {[%clk 0:00:43.3]} 26. Rhe1 {[%clk 0:02:12.3]} 26... e6 {[%clk
0:00:41.8]} 27. g5 {[%clk 0:02:06.2]} 27... Ra8 {[%clk 0:00:38.3]} 28. Kb2
{[%clk 0:02:00.7]} 28... Ra5 {[%clk 0:00:32.1]} 29. Nd3 {[%clk 0:02:00.5]} 29...
c5 {[%clk 0:00:25.8]} 30. Bxd5 {[%clk 0:01:51.1]} 30... Rxd5 {[%clk 0:00:18.2]}
31. Rxd5 {[%clk 0:01:51.1]} 31... exd5 {[%clk 0:00:19.1]} 32. Re5 {[%clk
0:01:51.1]} 32... Bb7 {[%clk 0:00:16.2]} 33. f4 {[%clk 0:01:42.8]} 33... Rb5
{[%clk 0:00:11.7]} 34. f5 {[%clk 0:01:40.3]} 34... gxf5 {[%clk 0:00:11.1]} 35.
Rxf5 {[%clk 0:01:41.2]} 35... Ke7 {[%clk 0:00:10.5]} 36. Ne5 {[%clk 0:01:33.6]}
36... Ke6 {[%clk 0:00:10.7]} 37. Rxf7 {[%clk 0:01:33.8]} 37... Kxe5 {[%clk
0:00:11]} 38. g6 {[%clk 0:01:34.2]} 38... c4 {[%clk 0:00:02.1]} 39. gxh7 {[%clk
0:01:29.5]} 39... c3+ {[%clk 0:00:02.3]} 40. Kc1 {[%clk 0:01:30]} 1-0

[Event "Late-Titled-Tuesday-Blitz-October-03-2023"]
[Site "Chess.com"]
[Date "2023.10.03"]
[Round "4"]
[White "Veiso"]
[Black "szachuspl"]
[Result "1-0"]
[WhiteElo "2413"]
[BlackElo "2526"]
[TimeControl "180+1"]
[EndTime "14:37:23 PDT"]
[Termination "Veiso won by resignation"]

1. d4 {[%clk 0:02:56.6]} 1... g6 {[%clk 0:02:59.1]} 2. e4 {[%clk 0:02:56.4]}
2... Bg7 {[%clk 0:02:59.6]} 3. Nc3 {[%clk 0:02:56.4]} 3... d6 {[%clk 0:03:00.3]}
4. Be3 {[%clk 0:02:56.9]} 4... a6 {[%clk 0:03:00.9]} 5. Qd2 {[%clk 0:02:55.9]}
5... b5 {[%clk 0:03:01.4]} 6. O-O-O {[%clk 0:02:55.7]} 6... Nd7 {[%clk
0:03:01.4]} 7. f3 {[%clk 0:02:55.2]} 7... Bb7 {[%clk 0:03:01.6]} 8. h4 {[%clk
0:02:55.4]} 8... h6 {[%clk 0:03:01]} 9. g4 {[%clk 0:02:49.9]} 9... c5 {[%clk
0:03:01.1]} 10. Nge2 {[%clk 0:02:40.4]} 10... Qc7 {[%clk 0:03:00.5]} 11. h5
{[%clk 0:02:35.8]} 11... g5 {[%clk 0:02:58.6]} 12. Ng3 {[%clk 0:02:33.2]} 12...
e6 {[%clk 0:02:58.2]} 13. d5 {[%clk 0:02:30.4]} 13... Ne5 {[%clk 0:02:55.8]} 14.
dxe6 {[%clk 0:02:25.8]} 14... fxe6 {[%clk 0:02:53.6]} 15. Qxd6 {[%clk
0:02:23.1]} 15... Qxd6 {[%clk 0:02:53.8]} 16. Rxd6 {[%clk 0:02:22.9]} 16... Nxf3
{[%clk 0:02:29.3]} 17. Rxe6+ {[%clk 0:02:12.1]} 17... Kd7 {[%clk 0:02:27.9]} 18.
Rg6 {[%clk 0:01:46.5]} 18... Bxc3 {[%clk 0:02:27.3]} 19. bxc3 {[%clk 0:01:47.4]}
19... Ne7 {[%clk 0:02:26.9]} 20. Rg7 {[%clk 0:01:44]} 20... Rag8 {[%clk
0:02:18.5]} 21. Rxg8 {[%clk 0:01:43.8]} 21... Rxg8 {[%clk 0:02:18.6]} 22. Bxc5
{[%clk 0:01:44.7]} 22... Ne5 {[%clk 0:02:08]} 23. Be2 {[%clk 0:01:39.9]} 23...
Rf8 {[%clk 0:02:03.3]} 24. Nf5 {[%clk 0:01:29.7]} 24... Rxf5 {[%clk 0:01:55.5]}
25. gxf5 {[%clk 0:01:27.3]} 25... Nxf5 {[%clk 0:01:50.5]} 26. Rd1+ {[%clk
0:01:25.8]} 26... Kc6 {[%clk 0:01:46.5]} 27. Bd4 {[%clk 0:00:47.5]} 27... Ng3
{[%clk 0:01:36.1]} 28. Bxe5 {[%clk 0:00:46.4]} 28... Nxe2+ {[%clk 0:01:34.2]}
29. Kd2 {[%clk 0:00:37.5]} 29... Nf4 {[%clk 0:01:34.4]} 30. Bxf4 {[%clk
0:00:37.6]} 30... gxf4 {[%clk 0:01:35.1]} 31. Rf1 {[%clk 0:00:38.2]} 31... Kd6
{[%clk 0:01:35.7]} 32. Rxf4 {[%clk 0:00:36.4]} 32... Ke5 {[%clk 0:01:35.9]} 33.
Ke3 {[%clk 0:00:36.7]} 33... Bc8 {[%clk 0:01:34.4]} 34. Rf7 {[%clk 0:00:30.2]}
34... Be6 {[%clk 0:01:34.1]} 35. Ra7 {[%clk 0:00:27.8]} 35... Bg4 {[%clk
0:01:27.3]} 36. Rxa6 {[%clk 0:00:25.4]} 36... Bxh5 {[%clk 0:01:27.9]} 37. Rxh6
{[%clk 0:00:23.4]} 37... Bf7 {[%clk 0:01:28]} 38. a3 {[%clk 0:00:22.5]} 38...
Bc4 {[%clk 0:01:27]} 39. Rc6 {[%clk 0:00:21]} 39... Bf1 {[%clk 0:01:26.5]} 40.
Rc5+ {[%clk 0:00:21.1]} 40... Ke6 {[%clk 0:01:26.4]} 41. Kd4 {[%clk 0:00:22]}
41... Kd6 {[%clk 0:01:26.8]} 42. e5+ {[%clk 0:00:21.9]} 42... Ke6 {[%clk
0:01:27.5]} 43. Rc6+ {[%clk 0:00:21.7]} 43... Kd7 {[%clk 0:01:27.5]} 44. Rf6
{[%clk 0:00:22.4]} 44... Be2 {[%clk 0:01:27.1]} 45. Kc5 {[%clk 0:00:20.6]} 45...
Bc4 {[%clk 0:01:26.2]} 46. Rb6 {[%clk 0:00:17.6]} 46... Be2 {[%clk 0:01:25]} 47.
Rxb5 {[%clk 0:00:17]} 1-0